bitfinex-derivatives/quotes_ETHF0:USTF0_20240927
["timestamp","ask_amount","ask_price","bid_price","bid_amount"]
[1727410358722,3.2078,2646.5,2646.4,0.3908]
[1727410359027,0.75677,2646.7,2646.4,0.3908]
[1727410359225,3.58555,2646.8,2646.5,1.36]
[1727410359527,3.58555,2646.8,2646.5,1.7486]
[1727410360228,3.2078,2646.8,2646.5,1.7486]
[1727410360619,3.58556,2646.8,2646.5,1.7486]
[1727410360816,3.2078,2646.8,2646.5,1.7486]
[1727410362124,3.2078,2646.8,2646.7,1.36]
[1727410366629,0.37774,2646.9,2646.7,1.36]
[1727410366823,0.75323,2647.0,2646.7,1.36]
[1727410367028,0.75323,2647.0,2646.8,0.3705]
[1727410367527,0.37774,2646.9,2646.8,0.3705]
[1727410368824,0.3755,2647.0,2646.8,0.3705]
[1727410369135,0.75322,2647.0,2646.9,0.3977]
[1727410370734,0.3755,2647.0,2646.9,0.3977]
[1727410371034,0.75322,2647.0,2646.9,0.3977]
[1727410371237,0.3755,2647.0,2646.9,0.3977]
[1727410372035,0.37772,2647.1,2646.9,0.3977]
[1727410372231,0.37772,2647.0,2646.9,0.3977]
[1727410372432,0.37772,2647.1,2646.9,0.3977]
[1727410373330,3.9562,2647.2,2646.9,0.3977]
[1727410373635,0.37771,2647.1,2646.9,0.3977]
[1727410374231,0.37771,2647.1,2647.0,0.408]
[1727410374640,3.9562,2647.2,2647.0,0.408]
[1727410374934,0.37771,2647.1,2647.0,0.408]
[1727410375129,3.5785,2647.2,2647.0,0.408]
[1727410375324,0.37771,2647.1,2647.0,0.408]
[1727410377834,0.37771,2647.1,2646.9,0.3977]
[1727410379334,3.95621,2647.2,2646.9,0.3977]
[1727410380236,3.5785,2647.2,2646.9,0.3977]
[1727410380532,3.9562,2647.2,2646.9,0.3977]
[1727410380736,3.5785,2647.2,2646.9,0.3977]
[1727410380947,3.9562,2647.2,2646.9,0.3977]
[1727410382336,3.5785,2647.2,2646.9,0.3977]
[1727410382539,3.2078,2647.2,2647.0,1.36]
[1727410382741,3.2078,2648.0,2647.1,3.2078]
[1727410382932,3.2078,2648.0,2647.9,1.36]
[1727410383133,0.781,2648.2,2647.9,9.86]
[1727410383338,0.781,2648.2,2648.0,1.36]
[1727410383532,3.5907,2648.6,2648.0,2.141]
[1727410383739,4.3717,2648.6,2648.2,1.36]
[1727410384142,4.7492,2648.6,2648.2,1.36]
[1727410384535,4.3663,2648.6,2648.2,1.36]
[1727410384735,0.37751,2648.5,2648.2,1.36]
[1727410385240,0.781,2648.6,2648.2,1.36]
[1727410385649,0.781,2648.6,2648.4,1.36]
[1727410386141,1.1585,2648.6,2648.4,1.36]
[1727410387242,0.37751,2648.5,2648.4,1.36]
[1727410388347,0.781,2648.6,2648.4,1.36]
[1727410388554,0.37751,2648.5,2648.4,1.36]
[1727410389447,0.781,2648.6,2648.2,1.36]
[1727410389653,0.37754,2648.3,2648.0,0.781]
[1727410389952,0.37754,2648.3,2648.1,1.36]
[1727410390143,0.37755,2648.2,2648.1,1.36]
[1727410390640,3.2078,2648.4,2648.1,1.36]
[1727410390846,0.37755,2648.3,2648.1,1.36]
[1727410392250,0.37755,2648.2,2648.1,1.36]
[1727410392450,0.37755,2648.2,2647.9,1.36]
[1727410392646,0.7573,2648.1,2647.9,1.36]
[1727410393349,3.7768,2648.0,2647.4,3.2078]
[1727410393543,1.13487,2648.1,2647.8,1.36]
[1727410393544,4.34267,2648.1,2647.8,1.36]
[1727410393745,3.9651,2648.1,2647.5,0.7732]
[1727410394048,3.9651,2648.1,2647.5,2.1332]
[1727410394049,0.37762,2647.8,2647.5,2.1332]
[1727410394351,0.37762,2647.8,2647.5,1.7593]
[1727410396941,3.9651,2648.1,2647.5,1.7593]
[1727410397145,0.37762,2647.8,2647.5,1.7593]
[1727410397347,0.37762,2647.8,2647.7,1.36]
[1727410398050,3.9651,2648.1,2647.7,1.36]
[1727410398555,0.37761,2647.8,2647.7,1.36]
[1727410398950,3.9651,2648.1,2647.7,1.36]
[1727410399554,0.37761,2647.8,2647.7,1.36]
[1727410409659,4.15441,2647.8,2647.7,1.36]
[1727410410961,3.7768,2647.8,2647.7,1.36]
[1727410411162,4.15441,2647.8,2647.7,1.36]
[1727410411359,3.5854,2647.9,2647.7,1.36]
[1727410411658,0.37761,2647.8,2647.7,1.36]
[1727410411967,3.5854,2647.9,2647.7,1.36]
[1727410412262,3.2078,2647.9,2647.8,1.36]
[1727410413158,0.37756,2648.2,2647.8,1.36]
[1727410413358,0.37754,2648.3,2648.0,1.36]
[1727410413559,0.37754,2648.3,2647.9,0.7778]
[1727410413560,0.37754,2648.3,2648.2,1.36]
[1727410414863,3.58534,2648.3,2648.2,1.36]
[1727410416764,3.2078,2648.3,2648.2,1.36]
[1727410416963,3.58534,2648.3,2648.2,1.36]
[1727410419966,3.58534,2648.3,2648.1,0.4055]
[1727410419967,0.37755,2648.2,2648.1,0.4055]
[1727410420173,0.37755,2648.2,2648.1,1.7655]
[1727410426474,0.37755,2648.2,2648.1,0.4055]
[1727410428272,0.37755,2648.2,2647.4,1.36]
[1727410428273,11.136,2648.2,2647.4,1.36]
[1727410428573,0.37765,2647.5,2647.4,0.3805]
[1727410428780,0.37765,2647.5,2647.4,1.7405]
[1727410428781,4.15525,2647.5,2647.4,1.7405]
[1727410428975,0.37765,2647.5,2647.4,1.7405]
[1727410429167,4.15525,2647.5,2647.4,1.7405]
[1727410430180,0.37765,2647.5,2647.4,1.7405]
[1727410431672,0.37765,2647.6,2647.4,1.7405]
[1727410431873,0.37765,2647.6,2647.5,1.36]
[1727410432568,0.37763,2647.7,2647.5,1.36]
[1727410434382,0.37764,2647.6,2647.5,1.36]
[1727410435069,0.37773,2647.0,2646.8,0.088]
[1727410435275,0.37774,2646.9,2646.8,0.3949]
[1727410438179,0.37782,2646.4,2646.0,0.088]
[1727410438371,0.3778,2646.5,2646.1,3.7609]
[1727410438772,0.37777,2646.7,2646.3,2.95]
[1727410438979,0.37778,2646.6,2646.3,2.95]
[1727410439183,0.3778,2646.5,2646.3,2.95]
[1727410440069,0.37777,2646.7,2646.3,2.95]
[1727410440278,0.37779,2646.6,2646.4,0.3745]
[1727410440477,0.37777,2646.7,2646.4,0.3745]
[1727410440681,0.37776,2646.8,2646.6,2.95]
[1727410440888,0.37777,2646.7,2646.6,2.95]
[1727410441180,0.37776,2646.8,2646.6,2.95]
[1727410441384,0.37777,2646.7,2646.6,2.95]
[1727410442184,3.2078,2646.9,2646.6,2.95]
[1727410442490,3.58555,2646.9,2646.8,2.95]
[1727410442786,3.2078,2646.9,2646.8,2.95]
[1727410443686,0.37774,2646.9,2646.8,2.95]
[1727410444082,0.37775,2646.8,2646.7,8.8822]
[1727410444283,0.37775,2646.8,2646.7,8.5]
[1727410447092,0.37778,2646.6,2646.5,0.3903]
[1727410447678,0.37777,2646.7,2646.5,0.3903]
[1727410448081,0.37778,2646.6,2646.5,0.3903]
[1727410448486,0.37778,2646.6,2646.4,3.3245]
[1727410448689,0.3778,2646.5,2646.4,0.3745]
[1727410449092,0.37782,2646.3,2646.2,0.4089]
[1727410449294,0.37782,2646.3,2646.2,8.9089]
[1727410451599,3.58562,2646.4,2646.2,8.9089]
[1727410451800,0.37782,2646.3,2646.2,8.9089]
[1727410452293,3.58561,2646.4,2646.2,8.9089]
[1727410452490,3.2078,2646.4,2646.2,8.9089]
[1727410453002,0.37782,2646.3,2646.2,8.9089]
[1727410453204,3.58562,2646.4,2646.2,8.9089]
[1727410453596,3.58562,2646.4,2646.2,11.8589]
[1727410453897,3.2078,2646.4,2646.2,11.8589]
[1727410454105,3.2078,2646.7,2646.3,3.7792]
[1727410454395,3.2078,2646.7,2646.5,2.95]
[1727410454602,3.2078,2646.7,2646.6,0.3772]
[1727410454802,3.2078,2646.7,2646.6,8.8772]
[1727410456997,0.37774,2646.9,2646.6,8.8772]
[1727410457196,0.37775,2646.8,2646.7,0.4081]
[1727410458606,0.37775,2646.8,2646.7,0.811]
[1727410458812,0.37774,2646.9,2646.7,0.811]
[1727410459304,3.2078,2647.0,2646.7,0.811]
[1727410459305,0.37775,2646.8,2646.7,0.811]
[1727410460200,3.2078,2647.0,2646.7,0.811]
[1727410460413,0.37775,2646.9,2646.7,0.811]
[1727410460704,0.37775,2646.8,2646.7,0.811]
[1727410461802,0.37774,2646.9,2646.7,0.811]
[1727410462302,3.2078,2647.0,2646.6,0.3772]
[1727410462610,0.37777,2646.7,2646.6,0.3772]
[1727410466508,1.18516,2646.8,2646.6,0.3772]
[1727410467613,0.8074,2646.8,2646.6,0.3772]
[1727410467808,1.18516,2646.8,2646.6,0.3772]
[1727410468011,0.78406,2646.8,2646.6,0.3772]
[1727410468211,0.78406,2646.8,2646.7,0.3817]
[1727410469416,0.78406,2646.8,2646.6,0.3772]
[1727410469918,3.2078,2646.7,2646.6,0.3772]
[1727410470326,3.58557,2646.7,2646.6,0.3772]
[1727410470512,0.3778,2646.5,2646.1,0.3961]
[1727410470713,0.3778,2646.5,2646.1,1.1992]
[1727410471018,0.3778,2646.5,2646.1,9.6992]
[1727410472610,1.12239,2646.6,2646.1,9.6992]
[1727410472814,0.3778,2646.5,2646.1,9.6992]
[1727410473122,0.37781,2646.4,2646.1,9.6992]
[1727410473521,0.3847,2646.3,2646.1,9.6992]
[1727410473825,0.76252,2646.3,2646.1,9.6992]
[1727410474416,0.3847,2646.3,2646.1,9.6992]
[1727410475026,0.37784,2646.2,2646.1,8.5]
[1727410475321,3.7792,2646.2,2645.7,1.1553]
[1727410475626,0.37787,2646.0,2645.7,1.1553]
[1727410476321,3.9536,2646.1,2645.7,1.1553]
[1727410476322,4.33146,2646.1,2645.7,1.1553]
[1727410477219,0.37787,2646.0,2645.7,1.1553]
[1727410477724,4.33146,2646.1,2645.7,1.1553]
[1727410478027,3.2078,2646.1,2645.7,4.1053]
[1727410478926,3.58565,2646.1,2645.7,4.1053]
[1727410479121,3.2078,2646.1,2645.7,4.1053]
[1727410480919,3.58566,2646.1,2645.7,4.1053]
[1727410481119,3.2078,2646.1,2645.8,8.5]
[1727410481725,3.58565,2646.1,2645.8,8.5]
[1727410484420,3.2078,2646.1,2645.8,8.5]
[1727410484621,0.37787,2646.0,2645.8,8.5]
[1727410484927,3.2078,2646.1,2645.8,8.5]
[1727410485233,0.3779,2645.8,2645.7,4.1053]
[1727410485727,0.37789,2645.9,2645.7,12.6053]
[1727410486824,0.3758,2646.0,2645.7,12.6053]
[1727410487021,0.37789,2645.9,2645.7,12.6053]
[1727410488430,0.75367,2646.0,2645.7,12.6053]
[1727410488732,0.37789,2645.9,2645.7,12.6053]
[1727410489733,0.75368,2646.0,2645.7,12.6053]
[1727410489928,0.37789,2645.9,2645.7,12.6053]
[1727410490124,0.37788,2646.0,2645.7,12.6053]
[1727410490330,0.37787,2646.0,2645.7,12.6053]
[1727410491529,3.2078,2646.1,2645.7,12.6053]
[1727410491927,0.37788,2646.0,2645.7,12.6053]
[1727410493834,3.2078,2646.5,2645.9,2.95]
[1727410494031,4.45579,2646.6,2646.2,2.95]
[1727410494233,4.078,2646.6,2646.3,1.2074]
[1727410494434,3.2078,2646.5,2646.3,1.2074]
[1727410494935,3.2078,2646.5,2646.3,9.7074]
[1727410495136,0.3778,2646.5,2646.3,9.7074]
[1727410495437,3.5856,2646.5,2646.3,1.2074]
[1727410496628,0.37781,2646.4,2646.3,0.8007]
[1727410496834,3.2078,2646.5,2646.3,1.1981]
[1727410497034,3.5856,2646.5,2646.3,1.1981]
[1727410497242,3.2078,2646.5,2646.3,1.1981]
[1727410497430,3.5856,2646.5,2646.3,1.1981]
[1727410498726,3.2078,2646.5,2646.3,1.1981]
[1727410498932,3.58561,2646.5,2646.3,1.1981]
[1727410500236,3.2078,2646.5,2646.3,1.1981]
[1727410502135,0.37778,2646.6,2646.3,1.1981]
[1727410502538,0.37778,2646.7,2646.3,1.1981]
[1727410502734,3.6007,2646.8,2646.3,1.1981]
[1727410503135,0.37779,2646.6,2646.3,1.1981]
[1727410503342,0.37777,2646.7,2646.3,1.1981]
[1727410503538,0.37778,2646.6,2646.3,1.1981]
[1727410503736,3.6007,2646.8,2646.3,1.1981]
[1727410503941,0.37779,2646.6,2646.3,1.1981]
[1727410504145,3.5856,2646.5,2646.3,1.1981]
[1727410504348,3.2078,2646.5,2646.3,1.1981]
[1727410504842,3.2078,2646.5,2646.3,1.098]
[1727410505341,7.2858,2647.4,2646.4,6.7284]
[1727410505542,8.12940797,2647.8,2646.4,6.7284]
[1727410505543,3.2078,2647.5,2647.0,2.95]
[1727410505842,0.37765,2647.5,2647.1,0.785]
[1727410506039,3.58545,2647.5,2647.1,0.785]
[1727410506448,3.58545,2647.5,2647.3,1.36]
[1727410506836,0.37767,2647.4,2647.3,1.36]
[1727410507034,3.58546,2647.5,2647.3,1.36]
[1727410508240,3.2078,2647.5,2647.4,1.36]
[1727410508546,1.1717,2647.7,2647.2,3.3371]
[1727410508547,4.0031,2647.7,2647.2,3.3371]
[1727410509343,3.2078,2647.7,2647.2,3.3371]
[1727410509733,3.2078,2647.7,2647.5,2.95]
[1727410509937,3.2078,2647.7,2647.6,0.775]
[1727410511644,3.2078,2647.7,2647.6,3.725]
[1727410516059,1.13355,2648.3,2647.6,13.5018]
[1727410516363,0.37755,2648.2,2647.9,2.95]
[1727410516662,3.5898,2648.3,2647.9,11.45]
[1727410516860,0.37756,2648.2,2647.9,11.45]
[1727410517263,3.96735,2648.3,2647.9,11.45]
[1727410517862,3.5898,2648.3,2647.9,11.45]
[1727410518056,0.382,2648.3,2647.9,11.45]
[1727410518261,0.37755,2648.2,2647.9,11.45]
[1727410518462,3.96735,2648.3,2647.9,11.45]
[1727410518755,3.5898,2648.3,2647.9,11.45]
[1727410519460,3.96734,2648.3,2648.0,0.3906]
[1727410519861,3.5898,2648.3,2648.0,0.3906]
[1727410524163,3.5898,2648.3,2648.1,0.3709]
[1727410525466,3.5898,2648.3,2648.0,0.3906]
[1727410526975,0.1095,2648.1,2648.0,0.3906]
[1727410532469,0.1095,2648.1,2648.0,1.7506]
[1727410538084,0.1095,2648.1,2648.0,5.5266]
[1727410538385,0.3754,2648.8,2648.0,11.90418]
[1727410538580,0.75287,2648.8,2648.7,1.36]
[1727410538887,0.3754,2648.8,2648.7,1.36]
[1727410539188,0.75287,2648.8,2648.7,1.36]
[1727410539398,3.5832,2648.8,2648.7,1.36]
[1727410540390,3.5832,2648.8,2648.7,2.95]
[1727410546892,3.2078,2648.8,2648.7,2.95]
[1727410552692,0.37744,2649.0,2648.7,2.95]
[1727410552896,3.58524,2649.0,2648.9,2.95]
[1727410553393,3.2078,2649.0,2648.9,3.7354]
[1727410554494,3.58524,2649.0,2648.9,3.7354]
[1727410554684,3.2078,2649.0,2648.9,3.7354]
[1727410560002,0.4061,2649.2,2648.9,3.7354]
[1727410560500,0.78352,2649.2,2648.9,3.7354]
[1727410560690,0.4061,2649.2,2648.9,3.7354]
[1727410561297,0.78351,2649.2,2648.9,3.7354]
[1727410561501,0.4061,2649.2,2648.9,3.7354]
[1727410561903,0.78351,2649.2,2648.9,3.7354]
[1727410562102,0.4061,2649.2,2648.9,3.7354]
[1727410562404,0.4061,2649.2,2649.1,1.36]
[1727410563306,0.78351,2649.2,2649.1,1.36]
[1727410564201,0.4061,2649.2,2649.1,1.36]
[1727410565509,0.4061,2649.2,2648.9,0.7854]
[1727410565803,0.4061,2649.2,2649.1,1.36]
[1727410566210,0.78351,2649.2,2649.1,1.36]
[1727410567905,0.4061,2649.2,2649.1,1.36]
[1727410568209,0.78351,2649.2,2649.1,1.36]
[1727410569213,0.4061,2649.2,2649.1,1.36]
[1727410570408,0.78351,2649.2,2649.1,1.36]
[1727410571706,0.4061,2649.2,2649.1,1.36]
[1727410572509,3.9753,2649.3,2649.1,1.36]
[1727410572510,3.5979,2649.3,2649.1,1.36]
[1727410575609,3.2078,2649.3,2649.1,1.36]
[1727410575802,0.74946,2649.6,2649.1,1.36]
[1727410575803,0.74945,2649.6,2649.1,1.36]
[1727410576002,0.74945,2649.6,2648.9,0.7854]
[1727410576003,0.74945,2649.6,2649.5,1.36]
[1727410576514,0.3721,2649.6,2649.5,1.36]
[1727410577614,3.6078,2649.7,2649.5,1.36]
[1727410577821,3.98515,2649.7,2649.5,1.36]
[1727410578013,3.6078,2649.7,2649.5,1.36]
[1727410578512,3.98514,2649.7,2649.5,1.36]
[1727410578706,3.6078,2649.7,2649.5,1.36]
[1727410579207,3.98515,2649.7,2649.5,1.36]
[1727410581518,0.37735,2649.6,2649.5,1.36]
[1727410585125,3.6078,2649.7,2648.9,3.9932]
[1727410585417,3.58519,2649.4,2648.9,0.7854]
[1727410585609,0.3774,2649.3,2648.9,0.7854]
[1727410585809,0.37741,2649.2,2648.9,4.5598]
[1727410586007,0.37741,2649.2,2649.0,3.7752]
[1727410586412,0.37741,2649.2,2649.1,3.7752]
[1727410586618,0.37741,2649.2,2649.1,5.1352]
[1727410586821,0.37741,2649.2,2649.1,11.1352]
[1727410587013,0.37741,2649.2,2649.1,1.36]
[1727410589215,0.37744,2649.0,2648.9,0.7854]
[1727410589422,0.37744,2649.0,2648.9,2.1454]
[1727410590721,3.2078,2649.7,2649.0,3.7752]
[1727410591051,0.48685,2649.6,2649.5,1.36]
[1727410591913,0.1095,2649.6,2649.5,1.36]
[1727410592119,0.48685,2649.6,2649.5,1.36]
[1727410592918,0.1095,2649.6,2649.5,1.36]
[1727410593126,0.48685,2649.6,2649.5,1.36]
[1727410593317,0.1095,2649.6,2649.5,1.36]
[1727410593728,0.3982,2650.2,2649.5,1.36]
[1727410593729,0.94298,2650.8,2649.5,11.1344]
[1727410593914,3.58498,2650.8,2650.7,1.36]
[1727410594119,0.37718,2650.8,2650.7,1.36]
[1727410594415,0.37718,2650.8,2650.7,9.76]
[1727410594822,3.58498,2650.8,2650.7,9.76]
[1727410596222,1.59128,2650.9,2650.7,9.76]
[1727410596417,4.4219,2650.9,2650.7,9.76]
[1727410596818,0.37718,2650.8,2650.7,9.76]
[1727410597014,4.79907,2650.9,2650.7,9.76]
[1727410597418,4.4219,2650.9,2650.7,9.76]
[1727410597819,0.37718,2650.8,2650.7,9.76]
[1727410598623,4.79908,2650.9,2650.7,9.76]
[1727410598829,0.37718,2650.8,2650.7,9.76]
[1727410599221,0.37718,2650.8,2650.7,1.36]
[1727410599523,0.37718,2650.8,2650.2,3.2078]
[1727410599524,0.37722,2650.6,2650.2,3.2078]
[1727410599726,0.37723,2650.5,2650.2,11.6078]
[1727410600028,4.4219,2650.9,2650.2,3.2078]
[1727410600029,0.37725,2650.4,2650.2,3.2078]
[1727410600229,1.14255,2650.4,2650.2,3.2078]
[1727410600723,0.37725,2650.3,2650.2,3.2078]
[1727410600925,0.37725,2650.3,2650.2,4.5678]
[1727410601224,0.7653,2650.4,2650.2,4.5678]
[1727410601619,0.37725,2650.3,2650.2,4.5678]
[1727410601829,0.37725,2650.3,2650.2,1.36]
[1727410602325,0.37725,2650.3,2650.0,9.1868]
[1727410602326,0.37728,2650.1,2650.0,9.1868]
[1727410602522,4.54644,2650.3,2650.0,1.36]
[1727410602726,4.92369,2650.3,2650.2,1.36]
[1727410602925,0.37734,2649.7,2649.5,1.1254]
[1727410603231,0.37734,2649.7,2649.6,9.76]
[1727410603619,0.37733,2649.8,2649.6,9.76]
[1727410603825,0.37733,2649.8,2649.7,1.36]
[1727410604130,0.37733,2649.8,2649.3,4.131]
[1727410604131,0.94336,2649.7,2649.1,3.2078]
[1727410604336,0.94336,2649.7,2649.1,3.6015]
[1727410604337,0.37741,2649.2,2649.1,3.6015]
[1727410604629,0.37741,2649.2,2649.1,14.9515]
[1727410604830,0.37741,2649.2,2649.1,2.95]
[1727410607222,0.7538,2649.3,2649.1,2.95]
[1727410607423,0.37741,2649.2,2649.1,2.95]
[1727410607820,0.7538,2649.3,2649.1,2.95]
[1727410608433,0.37741,2649.2,2649.1,2.95]
[1727410609626,0.3764,2649.3,2649.1,2.95]
[1727410609833,0.37735,2649.6,2649.1,2.95]
[1727410610036,0.77605,2649.6,2649.3,2.95]
[1727410610331,0.3987,2649.6,2649.3,2.95]
[1727410610530,3.58513,2649.8,2649.5,2.95]
[1727410610733,3.58513,2649.8,2649.3,0.3999]
[1727410610734,3.2078,2649.8,2649.7,2.95]
[1727410611142,3.58513,2649.8,2649.7,2.95]
[1727410611335,7.35873,2649.8,2649.7,2.95]
[1727410612228,0.37735,2649.7,2649.5,2.95]
[1727410612434,0.37734,2649.7,2649.5,2.95]
[1727410612839,0.37734,2649.7,2649.3,2.95]
[1727410613136,0.37734,2649.7,2649.5,2.95]
[1727410614234,0.37735,2649.7,2649.5,2.95]
[1727410614933,3.58513,2649.8,2649.5,2.95]
[1727410615235,0.37733,2649.8,2649.5,3.3289]
[1727410616029,0.37734,2649.7,2649.5,3.3289]
[1727410616828,3.2078,2649.8,2649.5,3.3289]
[1727410617033,0.37734,2649.7,2649.5,3.3289]
[1727410617929,0.37735,2649.6,2649.5,3.3289]
[1727410618932,3.2078,2649.8,2649.3,2.95]
[1727410619238,0.37738,2649.4,2649.3,2.95]
[1727410619534,0.3774,2649.3,2649.2,0.374]
[1727410619736,0.37742,2649.2,2649.0,3.7379]
[1727410620635,0.48692,2649.2,2649.1,0.4036]
[1727410623042,0.1095,2649.2,2649.1,0.4036]
[1727410623940,0.37743,2649.1,2649.0,3.3556]
[1727410624139,0.48692,2649.2,2649.1,0.3904]
[1727410624335,0.37743,2649.1,2649.0,11.35]
[1727410624534,0.37743,2649.1,2649.0,12.1228]
[1727410625335,0.37743,2649.1,2649.0,3.7228]
[1727410625733,0.1095,2649.2,2649.0,3.7228]
[1727410625734,0.48692,2649.2,2649.0,3.7228]
[1727410626144,0.37743,2649.1,2649.0,3.7228]
[1727410626347,0.1095,2649.2,2649.0,3.7228]
[1727410626538,0.48692,2649.2,2649.0,3.7228]
[1727410628148,0.37743,2649.1,2649.0,3.7228]
[1727410628444,0.48692,2649.2,2649.0,3.7228]
[1727410628646,0.1095,2649.2,2649.0,3.7228]
[1727410628843,0.48692,2649.2,2649.0,3.7228]
[1727410630047,0.37743,2649.1,2649.0,3.7228]
[1727410630239,0.48692,2649.2,2649.0,3.7228]
[1727410630745,0.1095,2649.2,2649.0,3.7228]
[1727410630951,0.48691,2649.2,2649.0,3.7228]
[1727410632149,0.48692,2649.2,2649.0,3.7228]
[1727410632841,0.37743,2649.1,2649.0,3.7228]
[1727410634151,0.37742,2649.2,2649.0,3.7228]
[1727410634549,0.37743,2649.1,2649.0,3.7228]
[1727410634748,0.37742,2649.2,2649.0,3.7228]
[1727410634945,0.37743,2649.1,2649.0,3.7228]
[1727410635145,0.37741,2649.2,2649.0,3.7228]
[1727410635655,0.37743,2649.1,2649.0,3.7228]
[1727410636366,0.37742,2649.2,2649.0,3.7228]
[1727410636759,0.7653,2649.3,2649.0,3.7228]
[1727410636964,0.37742,2649.2,2649.0,0.7728]
[1727410637157,0.37742,2649.2,2649.1,2.95]
[1727410638272,0.37741,2649.2,2649.1,2.95]
[1727410639961,0.37743,2649.1,2649.0,3.7228]
[1727410640165,0.37743,2649.1,2649.0,2.95]
[1727410640166,3.58523,2649.1,2649.0,2.95]
[1727410646373,0.37744,2649.0,2648.8,0.4048]
[1727410647174,0.3983,2649.2,2648.8,0.4048]
[1727410647470,0.77571,2649.2,2649.1,1.36]
[1727410648872,0.37741,2649.2,2649.1,1.36]
[1727410649075,0.3879,2649.3,2649.1,1.36]
[1727410649274,0.37741,2649.2,2649.1,1.36]
[1727410649474,3.58519,2649.4,2649.1,1.36]
[1727410649675,3.58519,2649.4,2649.3,1.36]
[1727410650071,3.58519,2649.4,2649.3,1.7592]
[1727410650268,3.2078,2649.4,2649.3,1.7592]
[1727410650467,4.27072021,2650.1,2649.3,2.1648]
[1727410650468,4.15106,2650.0,2649.3,2.1648]
[1727410650672,0.37735,2649.7,2649.6,1.36]
[1727410651973,3.5851,2650.0,2649.6,1.36]
[1727410652170,5.02112,2650.4,2649.8,1.36]
[1727410652171,0.37728,2650.1,2649.8,1.36]
[1727410652379,0.37728,2650.1,2650.0,1.36]
[1727410653075,0.3773,2650.0,2649.9,1.7656]
[1727410653270,0.3773,2650.0,2649.9,1.36]
[1727410654372,0.3773,2650.0,2649.8,2.95]
[1727410655066,3.58509,2650.1,2649.8,2.95]
[1727410655469,3.2078,2650.1,2649.8,2.95]
[1727410655677,3.2078,2650.1,2650.0,2.95]
[1727410655869,3.2078,2650.4,2650.0,2.95]
[1727410656064,0.37728,2650.1,2650.0,2.95]
[1727410656677,0.37728,2650.2,2650.0,2.95]
[1727410656864,0.37728,2650.2,2650.1,0.3949]
[1727410657065,0.37726,2650.3,2650.1,0.3949]
[1727410657376,3.2078,2650.4,2650.1,0.3949]
[1727410657574,0.4,2650.5,2650.2,2.95]
[1727410657775,0.37725,2650.3,2650.2,3.7454]
[1727410658073,0.37725,2650.3,2650.2,0.4054]
[1727410658275,0.37727,2650.2,2650.1,0.3949]
[1727410658481,0.3763,2650.2,2649.8,0.4054]
[1727410658780,0.37731,2649.9,2649.8,0.4054]
[1727410661878,3.6016,2650.1,2649.7,0.3949]
[1727410661879,0.37733,2649.8,2649.7,0.3949]
[1727410662078,0.94336,2649.7,2649.3,3.327]
[1727410662373,0.37738,2649.4,2649.3,3.701]
[1727410662773,4.52413,2649.8,2649.3,3.701]
[1727410662774,0.37738,2649.5,2649.3,3.701]
[1727410663368,0.37736,2649.6,2649.3,3.701]
[1727410663778,0.37736,2649.6,2649.5,2.95]
[1727410664183,0.37735,2649.7,2649.5,2.95]
[1727410664378,3.5808,2649.8,2649.5,2.95]
[1727410664379,3.58514,2649.8,2649.5,2.95]
[1727410664685,3.58513,2649.8,2649.3,0.751]
[1727410664880,3.58513,2649.8,2649.7,2.95]
[1727410665090,0.37733,2649.8,2649.7,2.95]
[1727410667588,0.7668,2650.1,2649.7,2.95]
[1727410667776,3.2078,2650.4,2649.9,2.95]
[1727410667973,0.37727,2650.2,2649.9,2.95]
[1727410668380,0.37726,2650.3,2649.9,2.95]
[1727410668584,0.37726,2650.3,2649.8,1.1427]
[1727410668585,0.37726,2650.3,2650.2,2.95]
[1727410670689,0.37725,2650.4,2650.2,2.95]
[1727410671085,0.37725,2650.4,2650.3,0.4068]
[1727410672287,1.16744,2650.5,2650.3,0.4068]
[1727410672593,0.7902,2650.5,2650.3,0.4068]
[1727410672889,0.37724,2650.4,2650.3,0.7799]
[1727410673483,1.16744,2650.5,2650.3,0.7799]
[1727410673683,0.37722,2650.6,2650.3,0.7799]
[1727410674293,0.37723,2650.5,2650.3,0.7799]
[1727410674490,0.37721,2650.6,2650.4,2.95]
[1727410679298,4.3954,2650.7,2650.4,2.95]
[1727410679700,0.37722,2650.6,2650.4,3.3606]
[1727410679997,0.37716,2651.0,2650.4,3.3606]
[1727410680197,0.37717,2650.9,2650.6,2.95]
[1727410680397,0.37717,2650.9,2650.7,0.3883]
[1727410680603,0.37716,2651.0,2650.7,0.3883]
[1727410680787,0.37718,2650.9,2650.7,0.3883]
[1727410680986,3.9971,2651.1,2650.7,0.3883]
[1727410681490,0.37718,2650.8,2650.7,0.3883]
[1727410686501,0.3772,2650.7,2650.6,2.95]
[1727410688307,3.2078,2651.0,2650.6,2.95]
[1727410688604,0.3772,2650.7,2650.6,2.95]